[Event "Titled Tuesday Blitz February 28 Early 2023"]
[White "Flis, Pawel"]
[Black "Chakravarthi Reddy, M"]
[WhiteFideId "1112864"]
[BlackFideId "25009532"]
[WhiteElo "1822"]
[BlackElo "2201"]
[Result "1-0"]
[Round "02"]
[TimeControl "180+2"]
[Date "2023.02.28"]
[WhiteClock "0:00:05"]
[BlackClock "0:00:09"]

1. e4 {[%clk 0:02:52]}  e5 {[%clk 0:02:57]} 2. d4 {[%clk 0:02:52]}  exd4 {[%clk 0:02:54]} 3. Nf3 {[%clk 0:02:52]}  Nc6 {[%clk 0:02:51]} 4. Bc4 {[%clk 0:02:53]}  Nf6 {[%clk 0:02:48]} 5. e5 {[%clk 0:02:53]}  d5 {[%clk 0:02:45]} 6. Bb5 {[%clk 0:02:53]}  Ne4 {[%clk 0:02:43]} 7. Nxd4 {[%clk 0:02:54]}  Bd7 {[%clk 0:02:41]} 8. Bxc6 {[%clk 0:02:54]}  bxc6 {[%clk 0:02:37]} 9. O-O {[%clk 0:02:54]}  Bc5 {[%clk 0:02:34]} 10. f3 {[%clk 0:02:55]}  Ng5 {[%clk 0:02:29]} 11. Be3 {[%clk 0:02:55]}  O-O {[%clk 0:02:22]} 12. f4 {[%clk 0:02:54]}  Ne4 {[%clk 0:02:19]} 13. Nd2 {[%clk 0:02:54]}  Bxd4 {[%clk 0:02:06]} 14. Bxd4 {[%clk 0:02:52]}  Bf5 {[%clk 0:02:04]} 15. Nb3 {[%clk 0:02:39]}  Qd7 {[%clk 0:01:59]} 16. Nc5 {[%clk 0:02:36]}  Nxc5 {[%clk 0:01:59]} 17. Bxc5 {[%clk 0:02:36]}  Rfe8 {[%clk 0:01:58]} 18. c3 {[%clk 0:02:33]}  f6 {[%clk 0:01:55]} 19. exf6 {[%clk 0:02:10]}  gxf6 {[%clk 0:01:55]} 20. Bd4 {[%clk 0:02:09]}  Qg7 {[%clk 0:01:27]} 21. Qh5 {[%clk 0:02:00]}  Re6 {[%clk 0:01:20]} 22. Qxf5 {[%clk 0:01:54]}  Re2 {[%clk 0:00:51]} 23. Rf2 {[%clk 0:01:25]}  Rae8 {[%clk 0:00:44]} 24. Bxf6 {[%clk 0:00:52]}  Qg6 {[%clk 0:00:44]} 25. Qxg6+ {[%clk 0:00:51]}  hxg6 {[%clk 0:00:45]} 26. Bd4 {[%clk 0:00:50]}  Re1+ {[%clk 0:00:43]} 27. Rxe1 {[%clk 0:00:47]}  Rxe1+ {[%clk 0:00:44]} 28. Rf1 {[%clk 0:00:44]}  Re2 {[%clk 0:00:43]} 29. Rb1 {[%clk 0:00:44]}  a5 {[%clk 0:00:37]} 30. Kf1 {[%clk 0:00:44]}  Rc2 {[%clk 0:00:34]} 31. a3 {[%clk 0:00:37]}  a4 {[%clk 0:00:34]} 32. b4 {[%clk 0:00:34]}  Ra2 {[%clk 0:00:33]} 33. b5 {[%clk 0:00:32]}  cxb5 {[%clk 0:00:30]} 34. Rxb5 {[%clk 0:00:32]}  Rxa3 {[%clk 0:00:31]} 35. Rxd5 {[%clk 0:00:32]}  Ra2 {[%clk 0:00:20]} 36. c4 {[%clk 0:00:29]}  a3 {[%clk 0:00:19]} 37. Rd8+ {[%clk 0:00:28]}  Kf7 {[%clk 0:00:18]} 38. Rd7+ {[%clk 0:00:28]}  Ke6 {[%clk 0:00:18]} 39. Rxc7 {[%clk 0:00:28]}  Rd2 {[%clk 0:00:16]} 40. Be5 {[%clk 0:00:26]}  a2 {[%clk 0:00:15]} 41. Ra7 {[%clk 0:00:26]}  Kf5 {[%clk 0:00:16]} 42. c5 {[%clk 0:00:22]}  Ke4 {[%clk 0:00:15]} 43. c6 {[%clk 0:00:19]}  Rc2 {[%clk 0:00:09]} 44. Ra4+ {[%clk 0:00:14]}  Ke3 {[%clk 0:00:10]} 45. Ra3+ {[%clk 0:00:12]}  Ke4 {[%clk 0:00:10]} 46. h3 {[%clk 0:00:11]}  g5 {[%clk 0:00:07]} 47. c7 {[%clk 0:00:09]}  gxf4 {[%clk 0:00:07]} 48. Rxa2 {[%clk 0:00:06]}  Rc1+ {[%clk 0:00:04]} 49. Ke2 {[%clk 0:00:06]}  Kxe5 {[%clk 0:00:04]} 50. Ra7 {[%clk 0:00:04]}  Rc2+ {[%clk 0:00:03]} 51. Kf3 {[%clk 0:00:04]}  Rc3+ {[%clk 0:00:04]} 52. Kf2 {[%clk 0:00:04]}  Rc2+ {[%clk 0:00:03]} 53. Kg1 {[%clk 0:00:04]}  Rc1+ {[%clk 0:00:03]} 54. Kh2 {[%clk 0:00:04]}  Kd6 {[%clk 0:00:02]} 55. h4 {[%clk 0:00:04]}  Rxc7 {[%clk 0:00:01]} 56. Rxc7 {[%clk 0:00:03]}  Kxc7 {[%clk 0:00:02]} 57. Kh3 {[%clk 0:00:03]}  Kd7 {[%clk 0:00:03]} 58. Kg4 {[%clk 0:00:04]}  Ke6 {[%clk 0:00:04]} 59. Kxf4 {[%clk 0:00:04]}  Kf6 {[%clk 0:00:05]} 60. g4 {[%clk 0:00:05]}  Kg6 {[%clk 0:00:06]} 61. h5+ {[%clk 0:00:05]}  Kh6 {[%clk 0:00:07]} 62. Kf5 {[%clk 0:00:05]}  Kg7 {[%clk 0:00:07]} 63. g5 {[%clk 0:00:05]}  Kh7 {[%clk 0:00:08]} 64. h6 {[%clk 0:00:04]}  Kh8 {[%clk 0:00:09]} 65. Kf6 {[%clk 0:00:04]}  Kg8 {[%clk 0:00:10]} 66. g6 {[%clk 0:00:04]}  Kh8 {[%clk 0:00:10]} 67. g7+ {[%clk 0:00:05]}  Kh7 {[%clk 0:00:11]} 68. Kf7 {[%clk 0:00:05]}  Kxh6 {[%clk 0:00:11]} 69. g8=Q {[%clk 0:00:06]}  Kh5 {[%clk 0:00:12]} 70. Qg3 {[%clk 0:00:05]}  Kh6 {[%clk 0:00:09]} 71. Qg6# {[%clk 0:00:05]} 1-0


[Site "https://www.chess.com"]

[Event "Titled Tuesday Blitz February 28 Early 2023"]
[White "Seletsky, Grigory"]
[Black "Larina, Maria"]
[WhiteFideId "14112191"]
[BlackFideId "24113182"]
[WhiteElo "2490"]
[BlackElo "1848"]
[Result "1-0"]
[Round "02"]
[TimeControl "180+2"]
[Date "2023.02.28"]
[WhiteClock "0:00:42"]
[BlackClock "0:00:03"]

1. e4 {[%clk 0:02:55]}  c6 {[%clk 0:02:59]} 2. d3 {[%clk 0:02:54]}  g6 {[%clk 0:02:56]} 3. Nd2 {[%clk 0:02:53]}  Bg7 {[%clk 0:02:56]} 4. g3 {[%clk 0:02:53]}  e5 {[%clk 0:02:49]} 5. Bg2 {[%clk 0:02:54]}  Ne7 {[%clk 0:02:49]} 6. Ne2 {[%clk 0:02:53]}  O-O {[%clk 0:02:49]} 7. O-O {[%clk 0:02:53]}  d5 {[%clk 0:02:47]} 8. c3 {[%clk 0:02:51]}  f5 {[%clk 0:02:43]} 9. exd5 {[%clk 0:02:46]}  cxd5 {[%clk 0:02:41]} 10. d4 {[%clk 0:02:45]}  e4 {[%clk 0:02:37]} 11. h4 {[%clk 0:02:41]}  Nbc6 {[%clk 0:02:32]} 12. Nb3 {[%clk 0:02:41]}  Kh8 {[%clk 0:02:25]} 13. Be3 {[%clk 0:02:38]}  b6 {[%clk 0:02:20]} 14. Qd2 {[%clk 0:02:39]}  Ng8 {[%clk 0:02:16]} 15. Rae1 {[%clk 0:02:34]}  Ba6 {[%clk 0:02:05]} 16. Na1 {[%clk 0:02:31]}  Na5 {[%clk 0:01:57]} 17. b3 {[%clk 0:02:28]}  Rc8 {[%clk 0:01:52]} 18. Rc1 {[%clk 0:02:26]}  Qd6 {[%clk 0:01:50]} 19. Rfe1 {[%clk 0:02:26]}  Bxe2 {[%clk 0:01:32]} 20. Rxe2 {[%clk 0:02:24]}  Rc6 {[%clk 0:01:20]} 21. Nc2 {[%clk 0:02:21]}  Qd7 {[%clk 0:01:03]} 22. Bf4 {[%clk 0:02:12]}  Nb7 {[%clk 0:00:58]} 23. Nb4 {[%clk 0:01:56]}  Rcc8 {[%clk 0:00:56]} 24. Qe1 {[%clk 0:01:54]}  Qe6 {[%clk 0:00:50]} 25. Nc2 {[%clk 0:01:54]}  Nf6 {[%clk 0:00:38]} 26. Be5 {[%clk 0:01:51]}  Nd8 {[%clk 0:00:34]} 27. Ne3 {[%clk 0:01:46]}  Nf7 {[%clk 0:00:31]} 28. Bf4 {[%clk 0:01:44]}  Nh5 {[%clk 0:00:24]} 29. Bg5 {[%clk 0:01:35]}  h6 {[%clk 0:00:21]} 30. Bf4 {[%clk 0:01:35]}  Nxf4 {[%clk 0:00:22]} 31. gxf4 {[%clk 0:01:35]}  Rc7 {[%clk 0:00:19]} 32. Rec2 {[%clk 0:01:33]}  Rfc8 {[%clk 0:00:19]} 33. f3 {[%clk 0:01:30]}  b5 {[%clk 0:00:18]} 34. fxe4 {[%clk 0:01:26]}  fxe4 {[%clk 0:00:19]} 35. b4 {[%clk 0:01:24]}  Bf6 {[%clk 0:00:17]} 36. Qg3 {[%clk 0:01:24]}  Qe7 {[%clk 0:00:16]} 37. Nxd5 {[%clk 0:01:16]}  Qd6 {[%clk 0:00:14]} 38. Nxf6 {[%clk 0:01:15]}  Qxf6 {[%clk 0:00:14]} 39. Bxe4 {[%clk 0:01:15]}  Re8 {[%clk 0:00:12]} 40. Bxg6 {[%clk 0:01:13]}  Rg8 {[%clk 0:00:12]} 41. h5 {[%clk 0:01:13]}  Nd6 {[%clk 0:00:12]} 42. Kh2 {[%clk 0:00:58]}  Nf5 {[%clk 0:00:11]} 43. Qh3 {[%clk 0:00:56]}  Nd6 {[%clk 0:00:09]} 44. f5 {[%clk 0:00:53]}  Nc4 {[%clk 0:00:08]} 45. Re1 {[%clk 0:00:46]}  Re7 {[%clk 0:00:06]} 46. Rce2 {[%clk 0:00:44]}  Rxe2+ {[%clk 0:00:05]} 47. Rxe2 {[%clk 0:00:45]}  Qd6+ {[%clk 0:00:06]} 48. Qg3 {[%clk 0:00:44]}  Qf6 {[%clk 0:00:06]} 49. Re6 {[%clk 0:00:43]}  Qd8 {[%clk 0:00:06]} 50. Qf4 {[%clk 0:00:43]}  Qf8 {[%clk 0:00:04]} 51. f6 {[%clk 0:00:42]}  Rxg6 {[%clk 0:00:03]} 52. hxg6 {[%clk 0:00:42]} 1-0


[Site "https://www.chess.com"]

[Event "Titled Tuesday Blitz February 28 Early 2023"]
[White "Shuvalov, Evgenij"]
[Black "Gutierrez Espinosa, Karen"]
[WhiteFideId "4187237"]
[BlackFideId "3513238"]
[WhiteElo "2080"]
[BlackElo "2017"]
[Result "1-0"]
[Round "02"]
[TimeControl "180+2"]
[Date "2023.02.28"]
[WhiteClock "0:00:29"]
[BlackClock "0:00:03"]

1. d4 {[%clk 0:02:49]}  d5 {[%clk 0:02:58]} 2. c4 {[%clk 0:02:45]}  c6 {[%clk 0:02:57]} 3. Nf3 {[%clk 0:02:44]}  Nf6 {[%clk 0:02:57]} 4. Nc3 {[%clk 0:02:43]}  e6 {[%clk 0:02:56]} 5. Bg5 {[%clk 0:02:40]}  Nbd7 {[%clk 0:02:46]} 6. e3 {[%clk 0:02:39]}  h6 {[%clk 0:02:34]} 7. Bh4 {[%clk 0:02:38]}  Be7 {[%clk 0:02:34]} 8. Bd3 {[%clk 0:02:24]}  dxc4 {[%clk 0:02:33]} 9. Bxc4 {[%clk 0:02:24]}  b5 {[%clk 0:02:34]} 10. Bd3 {[%clk 0:02:22]}  Bb7 {[%clk 0:02:33]} 11. Rc1 {[%clk 0:02:21]}  O-O {[%clk 0:02:28]} 12. O-O {[%clk 0:02:21]}  a6 {[%clk 0:02:14]} 13. Bxf6 {[%clk 0:02:19]}  Bxf6 {[%clk 0:02:05]} 14. Ne4 {[%clk 0:02:18]}  Be7 {[%clk 0:01:58]} 15. Bb1 {[%clk 0:02:10]}  Rc8 {[%clk 0:01:44]} 16. Qc2 {[%clk 0:02:05]}  g6 {[%clk 0:01:42]} 17. Rfd1 {[%clk 0:02:02]}  f5 {[%clk 0:01:38]} 18. Nc5 {[%clk 0:02:00]}  Nxc5 {[%clk 0:01:37]} 19. dxc5 {[%clk 0:02:01]}  Qc7 {[%clk 0:01:37]} 20. Qb3 {[%clk 0:01:57]}  Rf6 {[%clk 0:01:21]} 21. Nd4 {[%clk 0:01:53]}  Kf7 {[%clk 0:01:19]} 22. a4 {[%clk 0:01:48]}  Qe5 {[%clk 0:01:15]} 23. f4 {[%clk 0:01:40]}  Qd5 {[%clk 0:00:57]} 24. Qa3 {[%clk 0:01:36]}  Rd8 {[%clk 0:00:48]} 25. b4 {[%clk 0:01:31]}  Qd7 {[%clk 0:00:32]} 26. Qb3 {[%clk 0:01:27]}  Qc7 {[%clk 0:00:31]} 27. Ba2 {[%clk 0:01:24]}  Bc8 {[%clk 0:00:30]} 28. Nf3 {[%clk 0:01:20]}  Kg7 {[%clk 0:00:17]} 29. Ne5 {[%clk 0:01:17]}  Rff8 {[%clk 0:00:16]} 30. Rd4 {[%clk 0:01:02]}  Bf6 {[%clk 0:00:13]} 31. Nf3 {[%clk 0:00:47]}  Bxd4 {[%clk 0:00:12]} 32. Nxd4 {[%clk 0:00:48]}  Rd5 {[%clk 0:00:08]} 33. Qb2 {[%clk 0:00:45]}  Kh7 {[%clk 0:00:07]} 34. Bxd5 {[%clk 0:00:43]}  exd5 {[%clk 0:00:07]} 35. Nf3 {[%clk 0:00:40]}  g5 {[%clk 0:00:07]} 36. Ne5 {[%clk 0:00:38]}  gxf4 {[%clk 0:00:03]} 37. exf4 {[%clk 0:00:39]}  Be6 {[%clk 0:00:04]} 38. axb5 {[%clk 0:00:37]}  axb5 {[%clk 0:00:03]} 39. Ra1 {[%clk 0:00:36]}  Rg8 {[%clk 0:00:03]} 40. Ra6 {[%clk 0:00:35]}  Qg7 {[%clk 0:00:03]} 41. Rxc6 {[%clk 0:00:29]} 1-0


[Site "https://www.chess.com"]

[Event "Titled Tuesday Blitz February 28 Early 2023"]
[White "Necula, Iulian"]
[Black "Fan_Of_Chucky"]
[WhiteFideId "1232380"]
[WhiteElo "1790"]
[BlackElo "2422"]
[Result "1-0"]
[Round "02"]
[TimeControl "180+2"]
[Date "2023.02.28"]
[WhiteClock "0:01:57"]
[BlackClock "0:00:12"]

1. d4 {[%clk 0:03:00]}  Nf6 {[%clk 0:02:59]} 2. Nc3 {[%clk 0:03:01]}  g6 {[%clk 0:02:57]} 3. Bf4 {[%clk 0:03:01]}  d6 {[%clk 0:02:57]} 4. e4 {[%clk 0:03:01]}  Bg7 {[%clk 0:02:57]} 5. Qd2 {[%clk 0:03:00]}  c6 {[%clk 0:02:57]} 6. Bh6 {[%clk 0:03:00]}  Bxh6 {[%clk 0:02:57]} 7. Qxh6 {[%clk 0:02:59]}  b5 {[%clk 0:02:58]} 8. a3 {[%clk 0:02:54]}  Qa5 {[%clk 0:02:50]} 9. O-O-O {[%clk 0:02:53]}  b4 {[%clk 0:02:32]} 10. axb4 {[%clk 0:02:49]}  Qxb4 {[%clk 0:02:30]} 11. Nf3 {[%clk 0:02:48]}  Ba6 {[%clk 0:02:16]} 12. Bxa6 {[%clk 0:02:45]}  Nxa6 {[%clk 0:02:17]} 13. e5 {[%clk 0:02:37]}  Nd5 {[%clk 0:01:43]} 14. Qg7 {[%clk 0:02:25]}  Rf8 {[%clk 0:01:24]} 15. Ng5 {[%clk 0:02:14]}  Nxc3 {[%clk 0:01:03]} 16. bxc3 {[%clk 0:02:14]}  Qxc3 {[%clk 0:00:54]} 17. Rd3 {[%clk 0:02:07]}  Qa1+ {[%clk 0:00:47]} 18. Kd2 {[%clk 0:02:07]}  Qxh1 {[%clk 0:00:48]} 19. exd6 {[%clk 0:02:07]}  O-O-O {[%clk 0:00:29]} 20. dxe7 {[%clk 0:02:05]}  Rfe8 {[%clk 0:00:30]} 21. exd8=Q+ {[%clk 0:02:04]}  Rxd8 {[%clk 0:00:28]} 22. Qxf7 {[%clk 0:02:01]}  Qxg2 {[%clk 0:00:20]} 23. Ne6 {[%clk 0:02:01]}  Rd7 {[%clk 0:00:12]} 24. Qe8+ {[%clk 0:02:00]}  Kb7 {[%clk 0:00:12]} 25. Rb3+ {[%clk 0:01:57]} 1-0


[Site "https://www.chess.com"]

[Event "Titled Tuesday Blitz February 28 Early 2023"]
[White "Zia, Tahsin Tajwar"]
[Black "Kalaiyalahan, Akshaya"]
[WhiteFideId "10211888"]
[BlackFideId "422894"]
[WhiteElo "2061"]
[BlackElo "2043"]
[Result "1-0"]
[Round "02"]
[TimeControl "180+2"]
[Date "2023.02.28"]
[WhiteClock "0:00:20"]
[BlackClock "0:00:02"]

1. d4 {[%clk 0:02:49]}  Nf6 {[%clk 0:02:58]} 2. c4 {[%clk 0:02:46]}  e6 {[%clk 0:02:58]} 3. Nc3 {[%clk 0:02:44]}  d5 {[%clk 0:02:56]} 4. Nf3 {[%clk 0:02:40]}  c5 {[%clk 0:02:44]} 5. cxd5 {[%clk 0:02:34]}  Nxd5 {[%clk 0:02:43]} 6. e4 {[%clk 0:02:29]}  Nxc3 {[%clk 0:02:42]} 7. bxc3 {[%clk 0:02:30]}  cxd4 {[%clk 0:02:42]} 8. cxd4 {[%clk 0:02:29]}  Bb4+ {[%clk 0:02:42]} 9. Bd2 {[%clk 0:02:30]}  Bxd2+ {[%clk 0:02:43]} 10. Qxd2 {[%clk 0:02:30]}  O-O {[%clk 0:02:41]} 11. Bc4 {[%clk 0:02:28]}  Nd7 {[%clk 0:02:41]} 12. O-O {[%clk 0:02:27]}  b6 {[%clk 0:02:40]} 13. Rfe1 {[%clk 0:02:27]}  Bb7 {[%clk 0:02:38]} 14. Rad1 {[%clk 0:02:26]}  Nf6 {[%clk 0:02:37]} 15. Qf4 {[%clk 0:02:22]}  Rc8 {[%clk 0:02:33]} 16. Bd3 {[%clk 0:02:20]}  h6 {[%clk 0:02:25]} 17. h4 {[%clk 0:02:13]}  Qc7 {[%clk 0:02:24]} 18. e5 {[%clk 0:02:02]}  Nd5 {[%clk 0:01:56]} 19. Qe4 {[%clk 0:01:51]}  Nf6 {[%clk 0:01:51]} 20. Qf4 {[%clk 0:01:28]}  Nd5 {[%clk 0:01:51]} 21. Qg4 {[%clk 0:01:15]}  Rfd8 {[%clk 0:01:18]} 22. h5 {[%clk 0:01:09]}  Nb4 {[%clk 0:01:04]} 23. Be4 {[%clk 0:00:50]}  Bxe4 {[%clk 0:01:00]} 24. Rxe4 {[%clk 0:00:45]}  Qc2 {[%clk 0:00:54]} 25. Ne1 {[%clk 0:00:35]}  Qxa2 {[%clk 0:00:46]} 26. Re3 {[%clk 0:00:28]}  Rd7 {[%clk 0:00:15]} 27. Rg3 {[%clk 0:00:23]}  f5 {[%clk 0:00:15]} 28. exf6 {[%clk 0:00:23]}  Nc2 {[%clk 0:00:11]} 29. d5 {[%clk 0:00:20]}  Nxe1 {[%clk 0:00:03]} 30. Qxe6+ {[%clk 0:00:20]}  Kh8 {[%clk 0:00:03]} 31. fxg7+ {[%clk 0:00:20]}  Kh7 {[%clk 0:00:02]} 32. g8=Q+ {[%clk 0:00:20]} 1-0


[Site "https://www.chess.com"]

[Event "Titled Tuesday Blitz February 28 Early 2023"]
[White "Vargas, Mauricio"]
[Black "Pein, Jonathan"]
[WhiteFideId "4404572"]
[BlackFideId "417092"]
[WhiteElo "2025"]
[BlackElo "2151"]
[Result "0-1"]
[Round "02"]
[TimeControl "180+2"]
[Date "2023.02.28"]
[WhiteClock "0:00:04"]
[BlackClock "0:00:29"]

1. e4 {[%clk 0:03:00]}  c6 {[%clk 0:03:00]} 2. d4 {[%clk 0:02:59]}  d5 {[%clk 0:03:00]} 3. e5 {[%clk 0:02:59]}  Bf5 {[%clk 0:02:58]} 4. g4 {[%clk 0:02:56]}  Bd7 {[%clk 0:02:52]} 5. f4 {[%clk 0:02:54]}  h5 {[%clk 0:02:51]} 6. g5 {[%clk 0:02:52]}  Bf5 {[%clk 0:02:48]} 7. Bh3 {[%clk 0:02:46]}  Qd7 {[%clk 0:02:48]} 8. Qf3 {[%clk 0:02:41]}  Na6 {[%clk 0:02:37]} 9. a3 {[%clk 0:02:40]}  O-O-O {[%clk 0:02:33]} 10. Nc3 {[%clk 0:02:39]}  Bxh3 {[%clk 0:02:24]} 11. Nxh3 {[%clk 0:02:37]}  c5 {[%clk 0:02:22]} 12. Be3 {[%clk 0:02:35]}  e6 {[%clk 0:02:22]} 13. dxc5 {[%clk 0:02:30]}  Bxc5 {[%clk 0:02:16]} 14. Bxc5 {[%clk 0:02:26]}  Nxc5 {[%clk 0:02:17]} 15. b4 {[%clk 0:02:24]}  Ne4 {[%clk 0:02:06]} 16. O-O {[%clk 0:02:16]}  Nd2 {[%clk 0:02:05]} 17. Qf2 {[%clk 0:02:04]}  Nxf1 {[%clk 0:02:03]} 18. Rxf1 {[%clk 0:02:02]}  Kb8 {[%clk 0:01:58]} 19. a4 {[%clk 0:02:00]}  Ne7 {[%clk 0:01:57]} 20. Nb5 {[%clk 0:01:59]}  Nc8 {[%clk 0:01:52]} 21. Rd1 {[%clk 0:01:47]}  a6 {[%clk 0:01:50]} 22. Nd4 {[%clk 0:01:35]}  Qxa4 {[%clk 0:01:37]} 23. Qd2 {[%clk 0:01:29]}  Nb6 {[%clk 0:01:34]} 24. c3 {[%clk 0:01:28]}  Nc4 {[%clk 0:01:34]} 25. Qe1 {[%clk 0:01:20]}  Qa3 {[%clk 0:01:10]} 26. Rb1 {[%clk 0:01:19]}  Rc8 {[%clk 0:01:07]} 27. b5 {[%clk 0:01:16]}  a5 {[%clk 0:01:04]} 28. Nf2 {[%clk 0:01:07]}  Qa2 {[%clk 0:00:58]} 29. Ra1 {[%clk 0:01:04]}  Qd2 {[%clk 0:00:58]} 30. Qb1 {[%clk 0:00:32]}  Qxf4 {[%clk 0:00:58]} 31. b6 {[%clk 0:00:25]}  Qxg5+ {[%clk 0:00:51]} 32. Kh1 {[%clk 0:00:20]}  Ne3 {[%clk 0:00:51]} 33. Qf1 {[%clk 0:00:14]}  Rxc3 {[%clk 0:00:44]} 34. Qg1 {[%clk 0:00:12]}  Qxg1+ {[%clk 0:00:41]} 35. Rxg1 {[%clk 0:00:12]}  g6 {[%clk 0:00:42]} 36. Ra1 {[%clk 0:00:09]}  Rhc8 {[%clk 0:00:41]} 37. Nh3 {[%clk 0:00:08]}  Rc1+ {[%clk 0:00:40]} 38. Rxc1 {[%clk 0:00:08]}  Rxc1+ {[%clk 0:00:41]} 39. Ng1 {[%clk 0:00:08]}  h4 {[%clk 0:00:38]} 40. h3 {[%clk 0:00:08]}  a4 {[%clk 0:00:37]} 41. Ne2 {[%clk 0:00:08]}  Rc2 {[%clk 0:00:36]} 42. Kh2 {[%clk 0:00:07]}  a3 {[%clk 0:00:36]} 43. Kh1 {[%clk 0:00:04]}  a2 {[%clk 0:00:35]} 44. Nd4 {[%clk 0:00:05]}  Rf2 {[%clk 0:00:30]} 45. Nb3 {[%clk 0:00:04]}  Nf1 {[%clk 0:00:29]} 0-1


[Site "https://www.chess.com"]

[Event "Titled Tuesday Blitz February 28 Early 2023"]
[White "Bennett, Patrick"]
[Black "Castillo Pena, Patricia Evarista"]
[WhiteFideId "1801228"]
[BlackFideId "6412106"]
[WhiteElo "2416"]
[BlackElo "1919"]
[Result "0-1"]
[Round "02"]
[TimeControl "180+2"]
[Date "2023.02.28"]
[WhiteClock "0:00:01"]
[BlackClock "0:00:10"]

1. d4 {[%clk 0:02:16]}  d5 {[%clk 0:02:58]} 2. c4 {[%clk 0:02:15]}  c6 {[%clk 0:02:58]} 3. Nc3 {[%clk 0:02:15]}  Nf6 {[%clk 0:02:58]} 4. f3 {[%clk 0:02:15]}  e6 {[%clk 0:02:51]} 5. e4 {[%clk 0:02:15]}  dxe4 {[%clk 0:02:50]} 6. fxe4 {[%clk 0:02:16]}  c5 {[%clk 0:02:45]} 7. d5 {[%clk 0:02:16]}  exd5 {[%clk 0:02:37]} 8. cxd5 {[%clk 0:02:17]}  Bd6 {[%clk 0:02:34]} 9. Nf3 {[%clk 0:02:16]}  Nbd7 {[%clk 0:02:32]} 10. Be2 {[%clk 0:02:16]}  O-O {[%clk 0:02:32]} 11. O-O {[%clk 0:02:16]}  Re8 {[%clk 0:02:32]} 12. Qc2 {[%clk 0:02:14]}  Ne5 {[%clk 0:02:22]} 13. Bg5 {[%clk 0:02:13]}  h6 {[%clk 0:02:19]} 14. Bh4 {[%clk 0:02:13]}  a6 {[%clk 0:02:03]} 15. Rac1 {[%clk 0:02:12]}  b5 {[%clk 0:02:02]} 16. a3 {[%clk 0:02:11]}  Bd7 {[%clk 0:01:48]} 17. Nd2 {[%clk 0:02:05]}  Be7 {[%clk 0:01:45]} 18. d6 {[%clk 0:02:03]}  Bxd6 {[%clk 0:01:43]} 19. Bxf6 {[%clk 0:02:03]}  gxf6 {[%clk 0:01:43]} 20. Nd5 {[%clk 0:02:03]}  Be7 {[%clk 0:01:41]} 21. Rf4 {[%clk 0:01:43]}  Be6 {[%clk 0:01:39]} 22. Nxe7+ {[%clk 0:01:38]}  Qxe7 {[%clk 0:01:37]} 23. Rcf1 {[%clk 0:01:38]}  c4 {[%clk 0:01:06]} 24. Rxf6 {[%clk 0:01:33]}  Kg7 {[%clk 0:00:58]} 25. R6f4 {[%clk 0:00:49]}  Ng6 {[%clk 0:00:56]} 26. Qc3+ {[%clk 0:00:48]}  Kg8 {[%clk 0:00:52]} 27. Rf6 {[%clk 0:00:39]}  Rad8 {[%clk 0:00:46]} 28. Qg3 {[%clk 0:00:40]}  Kh7 {[%clk 0:00:37]} 29. Bh5 {[%clk 0:00:37]}  Rg8 {[%clk 0:00:32]} 30. Nb1 {[%clk 0:00:27]}  Qc5+ {[%clk 0:00:27]} 31. Kh1 {[%clk 0:00:26]}  Qxh5 {[%clk 0:00:27]} 32. Nc3 {[%clk 0:00:20]}  Rd2 {[%clk 0:00:24]} 33. Nd5 {[%clk 0:00:18]}  Bxd5 {[%clk 0:00:23]} 34. exd5 {[%clk 0:00:17]}  Qxd5 {[%clk 0:00:22]} 35. Rxf7+ {[%clk 0:00:16]}  Rg7 {[%clk 0:00:22]} 36. R7f6 {[%clk 0:00:08]}  Rd1 {[%clk 0:00:20]} 37. Qf2 {[%clk 0:00:05]}  Rxf1+ {[%clk 0:00:20]} 38. Qxf1 {[%clk 0:00:06]}  Nh4 {[%clk 0:00:17]} 39. Rf2 {[%clk 0:00:02]}  Qd3 {[%clk 0:00:14]} 40. Qe1 {[%clk 0:00:02]}  Qg6 {[%clk 0:00:12]} 41. g3 {[%clk 0:00:02]}  Nf5 {[%clk 0:00:12]} 42. Qf1 {[%clk 0:00:01]}  Nd4 {[%clk 0:00:11]} 43. Rf4 {[%clk 0:00:01]}  Qc6+ {[%clk 0:00:10]} 0-1


[Site "https://www.chess.com"]

[Event "Titled Tuesday Blitz February 28 Early 2023"]
[White "Yeletsky, Ivan"]
[Black "Carlsen, Magnus"]
[WhiteFideId "24180327"]
[BlackFideId "1503014"]
[WhiteElo "2414"]
[BlackElo "2852"]
[Result "0-1"]
[Round "03"]
[TimeControl "180+2"]
[Date "2023.02.28"]
[WhiteClock "0:00:01"]
[BlackClock "0:01:05"]

1. e4 {[%clk 0:03:00]}  c5 {[%clk 0:02:58]} 2. Nf3 {[%clk 0:03:00]}  e6 {[%clk 0:02:58]} 3. d4 {[%clk 0:03:00]}  cxd4 {[%clk 0:02:59]} 4. Nxd4 {[%clk 0:03:01]}  Nc6 {[%clk 0:02:59]} 5. Nc3 {[%clk 0:03:01]}  Qc7 {[%clk 0:02:59]} 6. Be3 {[%clk 0:02:52]}  a6 {[%clk 0:02:57]} 7. Qf3 {[%clk 0:02:52]}  Nf6 {[%clk 0:02:55]} 8. O-O-O {[%clk 0:02:50]}  b5 {[%clk 0:02:44]} 9. e5 {[%clk 0:02:03]}  Bb7 {[%clk 0:02:16]} 10. Nxe6 {[%clk 0:01:52]}  fxe6 {[%clk 0:01:55]} 11. exf6 {[%clk 0:01:52]}  gxf6 {[%clk 0:01:55]} 12. Qxf6 {[%clk 0:01:43]}  Qe5 {[%clk 0:01:54]} 13. Ne4 {[%clk 0:01:36]}  Be7 {[%clk 0:01:46]} 14. Qxe5 {[%clk 0:01:25]}  Nxe5 {[%clk 0:01:45]} 15. Bd4 {[%clk 0:01:21]}  Bxe4 {[%clk 0:01:42]} 16. Bxe5 {[%clk 0:01:21]}  Rg8 {[%clk 0:01:43]} 17. f3 {[%clk 0:01:16]}  Bc6 {[%clk 0:01:42]} 18. Bg3 {[%clk 0:01:01]}  h5 {[%clk 0:01:41]} 19. Bf2 {[%clk 0:00:53]}  b4 {[%clk 0:01:37]} 20. Rg1 {[%clk 0:00:49]}  a5 {[%clk 0:01:34]} 21. Bd3 {[%clk 0:00:46]}  Bd6 {[%clk 0:01:29]} 22. h4 {[%clk 0:00:44]}  Bh2 {[%clk 0:01:28]} 23. Rh1 {[%clk 0:00:37]}  Rxg2 {[%clk 0:01:27]} 24. Bb6 {[%clk 0:00:24]}  Bxf3 {[%clk 0:01:25]} 25. Rdf1 {[%clk 0:00:24]}  Bc6 {[%clk 0:01:21]} 26. Rxh2 {[%clk 0:00:09]}  Rxh2 {[%clk 0:01:21]} 27. Bg6+ {[%clk 0:00:09]}  Ke7 {[%clk 0:01:20]} 28. Bc5+ {[%clk 0:00:09]}  Kd8 {[%clk 0:01:20]} 29. Bd6 {[%clk 0:00:09]}  Rh1 {[%clk 0:01:19]} 30. Rxh1 {[%clk 0:00:05]}  Bxh1 {[%clk 0:01:20]} 31. Bxh5 {[%clk 0:00:06]}  Be4 {[%clk 0:01:19]} 32. Kd2 {[%clk 0:00:03]}  Ra6 {[%clk 0:01:17]} 33. Bf4 {[%clk 0:00:02]}  Rc6 {[%clk 0:01:16]} 34. c3 {[%clk 0:00:02]}  bxc3+ {[%clk 0:01:17]} 35. bxc3 {[%clk 0:00:03]}  Rc5 {[%clk 0:01:15]} 36. Be2 {[%clk 0:00:02]}  Bg6 {[%clk 0:01:10]} 37. Bg5+ {[%clk 0:00:01]}  Ke8 {[%clk 0:01:09]} 38. Bf3 {[%clk 0:00:02]}  Rf5 {[%clk 0:01:06]} 39. Ke3 {[%clk 0:00:01]}  a4 {[%clk 0:01:05]} 0-1


[Site "https://www.chess.com"]